Cogmind - Beta 10.2 --- EXPLORER MODE // 2021.01.29 @ 20:19:18 Player: TLFP Result: Destroyed by Y-45 Defender with Heavy Assault Rifle Performance ------------- Evolutions (2) 1000 Regions Visited (5) 1000 Robots Destroyed (28) 140 Value Destroyed (671) 671 Prototype IDs (0) 0 Alien Tech Used (0) 0 Bonus (0) 0 TOTAL SCORE: 2811 Bonus ------- None Cogmind --------- Core Integrity 0/550 Matter 300/300 Energy 100/100 System Corruption 2% Temperature Cool (9) Movement Rolling (90) Ox1 Location -8/Materials Parts ------- > --- POWER (1) -------- (None) > --- PROPULSION (3) --- Wheel Wheel > --- UTILITY (6) ------ Medium Storage Unit Large Storage Unit > --- WEAPON (2) ------- (None) > --- INVENTORY (14) --- Light Ion Engine Improved Signal Interpreter Improved Terrain Scanner Core Shielding Hardlight Generator Peak State ------------ > --- POWER ------------ Nuclear Core > --- PROPULSION ------- Light Treads Aluminum Leg > --- UTILITY ---------- Medium Storage Unit Large Storage Unit Targeting Computer Targeting Computer Hardened Medium Armor Plating Makeshift Hacking Suite > --- WEAPON ----------- Rocket Launcher Makeshift Hammer > --- INVENTORY -------- Light Ion Engine Improved Signal Interpreter Improved Terrain Scanner Core Shielding Core Shielding Hardlight Generator Light Assault Rifle [Rating: 23] Favorites ----------- Power Ion Engine Engine Ion Engine Power Core Nuclear Core Propulsion Aluminum Leg Treads Light Treads Leg Aluminum Leg Wheel Wheel Utility Targeting Computer Storage Large Storage Unit Processor Targeting Computer Hackware Makeshift Hacking Suite Protection Core Shielding Weapon Light Assault Rifle Energy Gun EM Pulse Gun Ballistic Gun Light Assault Rifle Launcher Rocket Launcher Special Weapon Welding Torch Impact Weapon Makeshift Hammer Build | -11 -10 -10 -10 -9 -8 ------- Run | Scr Mat Min Exi Min Mat Slots Evolved 5 | . 1 . . . 4 Power . | . . . . . . Propulsion 1 | . . . . . 1 Utility 4 | . 1 . . . 3 Weapon . | . . . . . . Parts Attached 32 | . 2 . 1 12 17 Power 3 | . 1 . . 1 1 Engine 2 | . 1 . . 1 . Core 1 | . . . . . 1 Reactor . | . . . . . . Propulsion 7 | . . . . 2 5 Treads 1 | . . . . 1 . Leg 3 | . . . . 1 2 Wheel 3 | . . . . . 3 Hover . | . . . . . . Flight . | . . . . . . Utility 8 | . 1 . 1 . 6 Device . | . . . . . . Storage 2 | . . . 1 . 1 Processor 2 | . 1 . . . 1 Hackware 1 | . . . . . 1 Protection 3 | . . . . . 3 Artifact . | . . . . . . Weapon 14 | . . . . 9 5 Energy Gun 1 | . . . . 1 . Energy Cannon . | . . . . . . Ballistic Gun 2 | . . . . 1 1 Ballistic Cannon . | . . . . . . Launcher 6 | . . . . 4 2 Special Weapon 1 | . . . . 1 . Impact Weapon 4 | . . . . 2 2 Slashing Weapon . | . . . . . . Piercing Weapon . | . . . . . . Special Melee Weapon . | . . . . . . Unidentified Prototypes . | . . . . . . Parts Lost 22 | . . . . 8 14 Power 2 | . . . . 1 1 Propulsion 7 | . . . . 2 5 Utility 5 | . . . . . 5 Weapon 8 | . . . . 5 3 Highest Loss Streak 13 | . . . . 6 13 Average Slot Usage (%) 89 | . 100 100 100 82 80 Engine 9 | . 12 12 12 11 . Core 1 | . . . . . 6 Treads 4 | . . . . 8 6 Leg 14 | . 25 25 25 6 7 Storage 12 | . 12 12 12 12 16 Processor 12 | . 12 12 12 12 14 Hackware 1 | . . . . . 7 Protection 11 | . 12 12 12 12 7 Energy Gun 6 | . 12 12 12 3 . Ballistic Gun 6 | . 12 12 12 2 . Launcher 3 | . . . . 6 3 Impact Weapon 2 | . . . . 2 7 Naked Turns . | . . . . . . Heaviest Build 43 | 15 17 17 25 28 43 Greatest Support 20 | 20 20 20 20 20 20 Greatest Overweight (x) 14 | . . . 1 2 14 Average Overweight (x) . | . . . . . 3 Largest Inventory Capacity 14 | . 8 8 10 10 14 Average Capacity 9 | . 8 8 8 10 14 Most Carried 10 | . 7 8 9 10 8 Average Carried 6 | . 6 7 8 6 5 Final Capacity 14 | 8 8 8 10 10 14 Final Carried 9 | 7 6 8 9 5 5 Class Distribution -------------------- 100% | Hacker-Mutant Dominant Class ---------------- Hacker-Mutant | -10/Materials Hacker-Mutant | -10/Mines Hacker-Mutant | -10/Exiles Hacker-Mutant | -9/Mines Hacker-Mutant | -8/Materials Resources | -11 -10 -10 -10 -9 -8 ----------- Run | Scr Mat Min Exi Min Mat Matter Collected 663 | 200 33 . . 216 214 Remotely . | . . . . . . Salvage Created 774 | . 184 . . 24 566 Parts 39 | . 10 . . . 29 Haulers Intercepted . | . . . . . . Recyclers Shooed . | . . . . . . Parts Field Recycled . | . . . . . . Retrieved Matter . | . . . . . . Parts Self-Destructed . | . . . . . . Prevented . | . . . . . . Kills | -11 -10 -10 -10 -9 -8 ------- Run | Scr Mat Min Exi Min Mat Combat Hostiles Destroyed 26 | . 4 . . 9 13 Melee 2 | . . . . . 2 Guns 3 | . 2 . . . 1 AOE 17 | . 2 . . 9 6 Classes Destroyed 11 | . 2 . . 2 7 Worker 3 | . . . . . 3 Builder 1 | . . . . . 1 Tunneler 1 | . . . . . 1 Recycler 1 | . . . . . 1 Operator 1 | . . . . . 1 Watcher 2 | . 1 . . . 1 Swarmer 7 | . . . . 2 5 Grunt 10 | . 4 . . . 6 Duelist 1 | . . . . . 1 Sentry 1 | . . . . . 1 Assembled 7 | . . . . 7 . Best Kill Streak 8 | . 3 . . 7 8 Combat Bots Only 7 | . 2 . . 7 6 Max Kills in Single Turn 3 | . 2 . . 2 3 Gunslinging . | . . . . . . Exploded 2 | . 2 . . 2 2 Melee 1 | . . . . . 1 Uniques/NPCs Destroyed . | . . . . . . Combat | -11 -10 -10 -10 -9 -8 -------- Run | Scr Mat Min Exi Min Mat Damage Taken 2631 | . 133 . . 751 1747 Core 705 | . 23 . . 131 551 Absorbed by Shields . | . . . . . . Core Remaining (%) 69 | 100 . . . 38 . Volleys Fired 55 | . 13 . . 20 22 Largest 2 | . 2 . . 2 2 Hottest 70 | . 60 . . 70 53 Shots Fired 75 | . 26 . . 25 24 Gun 50 | . 26 . . 7 17 Cannon . | . . . . . . Launcher 20 | . . . . 13 7 Special 5 | . . . . 5 . Kinetic 32 | . 13 . . 2 17 Thermal 7 | . . . . 7 . Explosive 20 | . . . . 13 7 Electromagnetic 16 | . 13 . . 3 . Robot Hit Streak 12 | . 12 . . 8 12 Robot Miss Streak 1 | . 1 . . 1 1 Penetration Max . | . . . . . . Secondary Targets 1 | . 1 . . . . Max Gunslinging Chain 1 | . 1 . . . . Shots Hit Robots 81 | . 19 . . 18 44 Core Hits 55 | . 9 . . 20 26 Critical Hits 1 | . . . . . 1 Critical Kills 1 | . . . . . 1 Critical Parts Destroyed . | . . . . . . Melee Attacks 31 | . . . . . 31 Impact 31 | . . . . . 31 Slashing . | . . . . . . Piercing . | . . . . . . Sneak Attacks 3 | . . . . . 3 Combat Hostiles . | . . . . . . Follow-up Attacks . | . . . . . . Damage Inflicted 2849 | . 324 . . 779 1746 Guns 426 | . 236 . . 70 120 Cannons . | . . . . . . Explosions 1451 | . 88 . . 697 666 Melee 960 | . . . . . 960 Ramming . | . . . . . . Kinetic 209 | . 73 . . 16 120 Thermal 122 | . 88 . . 34 . Explosive 1363 | . . . . 697 666 Electromagnetic 195 | . 163 . . 32 . Impact 960 | . . . . . 960 Slashing . | . . . . . . Piercing . | . . . . . . Highest Corruption 2 | . . . . . 2 Average Corruption 2 | . . . . . 2 Corruption Purged . | . . . . . . Overload Shots . | . . . . . . Overflow Damage 334 | . . . . 47 287 Projectiles . | . . . . . . Explosions 64 | . . . . 47 17 Melee 270 | . . . . . 270 Knockbacks 6 | . . . . . 6 Impact 6 | . . . . . 6 Kinetic . | . . . . . . Secondary . | . . . . . . Self-Inflicted Damage 247 | . 30 . . 167 50 Shots 13 | . 1 . . 9 3 Rammed . | . . . . . . Targets Rammed . | . . . . . . Kicked . | . . . . . . Crushed . | . . . . . . Highest Temperature 79 | . 79 . . 44 18 Average Temperature 19 | . 26 . . 18 5 Received Heat Transfer 1104 | . 93 . . 120 891 Siege Activations . | . . . . . . Robots Corrupted . | . . . . . . Combat Hostiles . | . . . . . . Parts Fried 3 | . . . . . 3 Impact Corruptions 13 | . . . . . 13 Robots Melted . | . . . . . . Combat Hostiles . | . . . . . . Parts Melted . | . . . . . . Heat Transferred 250 | . 100 . . 150 . Parts Sabotaged . | . . . . . . Parts Stolen . | . . . . . . Parts Stripped . | . . . . . . Power Chain Reactions 1 | . 1 . . . . Missiles Intercepted . | . . . . . . Alert | -11 -10 -10 -10 -9 -8 ------- Run | Scr Mat Min Exi Min Mat Peak Influence 203 | . 123 33 . 55 203 Initial 33 | . . 33 . . . Average 35 | . 45 33 . 13 80 Maximum Alert Level 1 | . . . . . 1 Low Security (%) 99 | . 100 100 . 100 97 Level 1 . | . . . . . 2 Level 2 . | . . . . . . Level 3 . | . . . . . . Level 4 . | . . . . . . Level 5 . | . . . . . . High Security . | . . . . . . Max Security . | . . . . . . Squads Dispatched 5 | . . . . . 5 Investigation . | . . . . . . Extermination . | . . . . . . Reinforcement 2 | . . . . . 2 Assault . | . . . . . . Garrison 3 | . . . . . 3 Intercept . | . . . . . . Construction Impeded . | . . . . . . Haulers Reinforced . | . . . . . . Stealth | -11 -10 -10 -10 -9 -8 --------- Run | Scr Mat Min Exi Min Mat Distress Signals 5 | . 1 . . . 4 Communications Jammed . | . . . . . . Distress Signals . | . . . . . . Times Spotted 54 | . 6 . . 17 31 Peak Tracking Total 19 | . 3 . . 19 8 Tactical Retreats 4 | . . . . 1 3 Traps | -11 -10 -10 -10 -9 -8 ------- Run | Scr Mat Min Exi Min Mat Traps Triggered . | . . . . . . Indirectly . | . . . . . . Trap Hack Attempts . | . . . . . . Triggered . | . . . . . . Disarmed . | . . . . . . Reprogrammed . | . . . . . . Reused . | . . . . . . Traps Extracted . | . . . . . . Installed . | . . . . . . Triggered . | . . . . . . Machines | -11 -10 -10 -10 -9 -8 ---------- Run | Scr Mat Min Exi Min Mat Machines Disabled . | . . . . . . Max in Single Turn . | . . . . . . Machines Sabotaged . | . . . . . . Garrisons Compromised . | . . . . . . Overloaded Fab Kills . | . . . . . . Fab Network Shutdowns . | . . . . . . Hacking | -11 -10 -10 -10 -9 -8 --------- Run | Scr Mat Min Exi Min Mat Machines Accessed 4 | . 1 1 1 . 1 Terminals 3 | . 1 1 . . 1 Fabricators . | . . . . . . Repair Stations . | . . . . . . Recycling Units . | . . . . . . Scanalyzers . | . . . . . . Garrison Access . | . . . . . . Total Hacks 29 | . 3 2 23 . 1 Successful 29 | . 3 2 23 . 1 Failed . | . . . . . . Catastrophic . | . . . . . . Database Lockouts . | . . . . . . Manual 4 | . 2 2 . . . Terminals 6 | . 3 2 . . 1 Fabricators . | . . . . . . Repair Stations . | . . . . . . Recycling Units . | . . . . . . Scanalyzers . | . . . . . . Garrison Access . | . . . . . . Terminal Hacks 27 | . 2 1 23 . 1 Record 23 | . . . 23 . . Level Access Points 2 | . 1 1 . . . Locate Traps 1 | . . . . . 1 Zone Layout 1 | . 1 . . . . Fabricator Hacks . | . . . . . . Repair Station Hacks . | . . . . . . Recycling Unit Hacks . | . . . . . . Scanalyzer . | . . . . . . Garrison Access Hacks . | . . . . . . Unauthorized Hacks 2 | . 1 1 . . . Terminals 2 | . 1 1 . . . Track 1 | . . 1 . . . Operators 1 | . 1 . . . . Fabricators . | . . . . . . Repair Stations . | . . . . . . Recycling Units . | . . . . . . Scanalyzers . | . . . . . . Garrison Access . | . . . . . . Data Cores Recovered . | . . . . . . Used . | . . . . . . Hacking Detections 2 | . 1 . . . 1 Full Trace Events . | . . . . . . Feedback Events . | . . . . . . Feedback Blocked . | . . . . . . Robot Schematics Acquired . | . . . . . . Robots Built . | . . . . . . Matter . | . . . . . . Time . | . . . . . . Total Robot Build Rating . | . . . . . . Part Schematics Acquired . | . . . . . . Parts Built . | . . . . . . Matter . | . . . . . . Time . | . . . . . . Total Part Build Rating . | . . . . . . Parts Repaired . | . . . . . . Time . | . . . . . . Parts Recycled . | . . . . . . Recycled Matter . | . . . . . . Retrieved Matter . | . . . . . . Retrieved Components . | . . . . . . Parts Scanalyzed . | . . . . . . Part Schematics Acquired . | . . . . . . Parts Damaged . | . . . . . . Bothacking | -11 -10 -10 -10 -9 -8 ------------ Run | Scr Mat Min Exi Min Mat Used RIF Installer . | . . . . . . Robots Hacked . | . . . . . . Non-combat . | . . . . . . Combat . | . . . . . . Robot Hacks Applied . | . . . . . . Relay Couplers Released . | . . . . . . Robots Rewired 4 | . . . 4 . . Allies Hacked . | . . . . . . Hacks Repelled . | . . . . . . Allies | -11 -10 -10 -10 -9 -8 -------- Run | Scr Mat Min Exi Min Mat Total Allies 4 | . . . 4 . . Largest Group 4 | . . . 4 4 . Highest-Rated Group 58 | . . . 58 58 . Highest-Rated Ally 21 | . . . 21 21 . Total Orders . | . . . . . . Ally Attacks 6 | . . . . 6 . Total Damage 91 | . . . . 91 . Kills 2 | . . . . 2 . Allies Corrupted . | . . . . . . Allies Melted . | . . . . . . Intel | -11 -10 -10 -10 -9 -8 ------- Run | Scr Mat Min Exi Min Mat Robot Analysis Total . | . . . . . . Derelict Logs Recovered 2 | . . . . 2 . Drone Launches . | . . . . . . Drone Recoveries . | . . . . . . Exploration | -11 -10 -10 -10 -9 -8 ------------- Run | Scr Mat Min Exi Min Mat Turns Passed 2768 | . 236 365 518 1126 523 Spaces Moved 1641 | 1 158 303 391 609 179 Core 7 | . . . . . 7 Treads 425 | . . . . 425 . Legs 1195 | 1 158 303 391 184 158 Wheels 14 | . . . . . 14 Hover . | . . . . . . Flight . | . . . . . . Fastest Speed 90 | 120 120 120 120 150 90 Average Speed 149 | 120 120 120 122 170 212 Slowest Speed 750 | 120 120 120 150 180 750 Overloaded Moves . | . . . . . . Propulsion Burnouts . | . . . . . . Robots Hopped . | . . . . . . Cave-ins Triggered 1 | . . . . . 1 Exploration Rate (%) 46 | 1 34 46 77 91 30 Regions Visited 5 Branch Regions 3 Pre-discovered Areas 1 | . . . 1 . . Known Exits Taken 5 | 1 1 1 1 1 . Unknown Exits Taken . | . . . . . . Scrap Searched 1 | . . . . 1 . Spaces Dug 2 | . . . . . 2 Terrain Destroyed 157 | . 3 . . 127 27 Melee 2 | . . . . . 2 Projectile . | . . . . . . AOE 155 | . 3 . . 127 25 Terrain Rammed . | . . . . . . Walls Destroyed . | . . . . . . Machines Disabled . | . . . . . . Actions | -11 -10 -10 -10 -9 -8 --------- Run | Scr Mat Min Exi Min Mat Total 1851 | . 180 304 429 670 268 Wait 47 | . 8 . 5 27 7 Move 1636 | . 157 302 390 608 179 Hop . | . . . . . . Pick Up 18 | . . 2 2 3 11 Fast Attach . | . . . . . . Attach 20 | . 1 . . 7 12 Detach 1 | . . . . . 1 Swap 12 | . 1 . 1 5 5 Drop 2 | . . . 2 . . Fire 55 | . 13 . . 20 22 Melee 31 | . . . . . 31 Ram . | . . . . . . Kick . | . . . . . . Crush . | . . . . . . Escape Stasis . | . . . . . . Rewire 29 | . . . 29 . . Trap . | . . . . . . Miscellaneous . | . . . . . . Route ------- -11/Scrapyard -10/Materials (discovered 5 exits: Mat x3 / *Min x2) -10/Mines (discovered 3 exits: Mat x2 / *Exi) -10/Exiles -9/Mines (discovered 2 exits: *Mat x2) -8/Materials (discovered 2 exits: *Fac / *Sto) History --------- Turn | Location | Event 1 | -11/Scrapyard | Identified exit to Materials 1 | -11/Scrapyard | Discovered exit to Materials (range 0) 1 | -11/Scrapyard | Entered Materials 1 | -10/Materials | Evolved 1 slot: Utility x1 32 | -10/Materials | Identified exit to Mines 32 | -10/Materials | Discovered exit to Mines (range 5) 112 | -10/Materials | Discovered exit to Mines (range 13) 112 | -10/Materials | Identified exit to Materials 237 | -10/Materials | Entered Mines 307 | -10/Mines | Build established: Hacker-Mutant 340 | -10/Mines | Received a Rocket Launcher from a helpful Derelict 411 | -10/Mines | Deemed a non-threat by the Exiles lab entrance 411 | -10/Mines | Identified exit to Exiles 411 | -10/Mines | Discovered exit to Exiles (range 5) 602 | -10/Mines | Entered Exiles 602 | -10/Exiles | Found Exiles lab destroyed 756 | -10/Exiles | Learned location of Zion (-7) 1098 | -10/Exiles | Identified exit to Mines 1098 | -10/Exiles | Discovered exit to Mines (range 10) 1120 | -10/Exiles | Entered Mines 1120 | -9/Mines | Accompanied by 4 allies 1255 | -9/Mines | Identified exit to Materials 1255 | -9/Mines | Discovered exit to Materials (range 15) 1329 | -9/Mines | A weapon hastily lodged in a ceiling crevice suddenly fell to the ground 1352 | -9/Mines | Assembled infested the area 1357 | -9/Mines | Assisted by a Guerilla fighting off Assembled 1427 | -9/Mines | Destroyed 7 combat bots 1465 | -9/Mines | Lost 6 parts (1p2n3w) 1639 | -9/Mines | Core integrity fell below 50% 1778 | -9/Mines | Learned Materials security intel 1908 | -9/Mines | Discovered exit to Materials (range 9) 1954 | -9/Mines | Learned location of 1 exit from Proximity Caves 2246 | -9/Mines | Entered Materials 2246 | -8/Materials | Evolved 4 slots: Propulsion x1, Utility x3 2252 | -8/Materials | Identified exit to Storage 2252 | -8/Materials | Discovered exit to Storage (range 7) 2596 | -8/Materials | Identified exit to Factory 2596 | -8/Materials | Discovered exit to Factory (range 12) 2725 | -8/Materials | Crushed by falling debris 2727 | -8/Materials | Core integrity fell below 50% 2750 | -8/Materials | Core integrity fell below 20% 2769 | -8/Materials | Destroyed by Y-45 Defender with Heavy Assault Rifle Last Messages --------------- 02752_ K-01 Serf cleans the Garrison Access. 02752_ K-01 Serf collects debris. 02753_ R-06 Scavenger collects Hvy. Assault Rifle. 02754_ K-01 Serf cleans the Garrison Access. 02754_ U-05 Engineer builds a Wall. 02754_ Mak. Hammer destroyed. 02756_ R-06 Scavenger collects Com. Wheel. 02757_ K-01 Serf collects debris. 02757_ Extracted 41 matter. 02759_ Wheel destroyed. 02760_ Acquired Wheel. 02760_ Targeting Computer destroyed. 02760_ U-05 Engineer lays Concrete. 02764_ K-01 Serf destroyed. 02764_ K-01 Serf collects debris. 02764_ U-05 Engineer lays Concrete. 02765_ Acquired 10 matter. 02765_ K-01 Serf collects debris. 02766_ U-05 Engineer lays Concrete. 02767_ R-06 Scavenger collects Welding Torch. Map ----- +----------------------------------------------------+ | % ######??????????????????????????????????????? | | #???????????????????????????????????????????? | | #???????????????????????????????????????????? | | #???????????????????????????????????????????? | | # ##???????????????????????????????????????????? | | # #????????????????????????????????????????????? | | # #????????????????????????????????????????????? | | # #????????????????????????????????????????????? | | # #????????????????????????????????????????????? | | # #????????????????????????????????????????????? | | # #????????????????????????????????????????????? | | # #????????????????????????????????????????????? | | # #????????????????????????????????????????????? | | # #????????????????????????????????????????????? | | # ########?????????????????????????????????????? | | # # #?????????????????????????????????????? | | # # ! "" #?????????????????????????????????????? | | # #% T" #?????????????????????????????????????? | | + %+% "" #?????????????????????????????????????? | | # #% #?????????????????????????????????????? | | # #%! #?????????????????????????????????????? | | # ########?????????????????????????????????????? | | ######????????????????????????? #????????????? | | # ######################### #????????????? | | k r #????????????? | | ## % %@ #????????????? | | # """ r""" ! =k #????????????? | | # ! """ """ um #????????????? | | # !! """ """ % #????????????? | | ! !! k" " #????????????? | | !% % l "G" #????????????? | | ?# Y Y% g """ ???????????? | | ?# u % k ########??????????? | | ?# *% #?????????????????? | | ?# ### ##### Y # ### #?????????????????? | | ?+ ## ## ####?? ##?????????????????? | | ?# ##% #% ! #????? #??????????????????? | | ?# ## ## #????? #??????????????????? | | ?# ####### """ #????? +??????????????????? | | ?# #?????# """" #????? #??????????????????? | | ?# #?????# """"" #????? #??????????????????? | | ?# #?????# """"" #????????????????????????????? | | ?# #?????# """ #????????????????????????????? | | ?# #?????# ? #????????????????????????????? | | ?# #?????######??##????????????????????????????? | | ?# ????????????????????????????????????????????? | | ?# ????????????????????????????????????????????? | | ?? ????????????????????????????????????????????? | | ?????????????????????????????????????????????????? | | ?????????????????????????????????????????????????? | +----------------------------------------------------+ Best States ------------- Heat Dissipation 31 Energy Generation 14 Energy Capacity 250 Matter Stores 300 Matter Capacity 300 Sight Range 16 Terrain Scan Density 10 Armor Coverage 225 Resistance: KI 35 Resistance: TH 35 Resistance: EX 35 Resistance: EM 35 Resistance: I 35 Resistance: S 35 Resistance: P 35 Core Shielding 20 Evasion (%) 40 Targeting Accuracy 10 Recoil Reduction 1 Offensive Hacking 31 Item Schematics ----------------- None Robot Schematics ------------------ None Fabricated ------------ Nothing Alien Tech Used ----------------- None Achievements -------------- Unlikely Earthworm Challenges ------------ None Game ------ Seed DeliveryReactionDoublenader Manual? 0 Play Time 00:20:30 Cumulative 13.4 hours Start 2021.01.29 @ 20:00:14 End 2021.01.29 @ 20:19:18 Sessions 1 Manual Loads 0 Difficulty Explorer Special Mode None Game No. 8 Rogue 0 Adventurer 7 Explorer 1 Win Type - Total 0 Types 0/0/0/0/0/0/0/0/0 Lore% 12 Gallery% 25 Achievement% 19 Wizard Run 0 Options --------- ASCII 0 Keyboard 0 Movement Mouse Keybinds 0 Fullscreen 2 Font 18/SmallcapsGlow Map View 76x50 Tactical HUD 1 Map Filters NONE Filters NONE Steam 1 RUN: 8f95f581-d97e-4e4a-a94e-ffa397cad1a0